fUST/lending_fUST_20251114
["ID","MTS","AMOUNT","RATE_DAILY","PERIOD"]
[393879924,1763065841894,-51835.28,0.000789,120]
[393879925,1763065841903,-152.984744,0.000789,120]
[393879926,1763065841913,-152.984744,0.00078969,120]
[393879927,1763065841923,-152.984744,0.00079038,120]
[393879928,1763065841932,-152.984744,0.00079107,120]
[393879929,1763065841942,-152.984744,0.00079176,120]
[393879930,1763065841952,-5000.0,0.000794,120]
[393879931,1763065841962,-619.25129147,0.00079452,120]
[393879932,1763065841972,-500.0,0.00079452,120]
[393879933,1763065841983,-500.0,0.00079452,120]
[393879934,1763065841992,-500.0,0.00079452,120]
[393879935,1763065842003,-500.0,0.00079452,120]
[393879936,1763065842014,-500.0,0.00079452,120]
[393879937,1763065842027,-515.73723214,0.00079452,120]
[393879938,1763065842036,-406.24,0.00079452,120]
[393879939,1763065842045,-500.0,0.00079452,120]
[393879940,1763065842055,-500.0,0.00079452,120]
[393879941,1763065842066,-500.0,0.00079452,120]
[393879942,1763065842075,-500.0,0.00079452,120]
[393879943,1763065842085,-500.0,0.00079452,120]
[393879944,1763065842096,-500.0,0.00079452,120]
[393879945,1763065842106,-500.0,0.00079452,120]
[393879946,1763065842115,-500.0,0.00079452,120]
[393879947,1763065842125,-500.0,0.00079452,120]
[393879948,1763065842139,-500.0,0.00079452,120]
[393879949,1763065842149,-500.0,0.00079452,120]
[393879950,1763065842158,-500.0,0.00079452,120]
[393879951,1763065842167,-500.0,0.00079452,120]
[393879952,1763065842176,-500.0,0.00079452,120]
[393879953,1763065842185,-500.0,0.00079452,120]
[393879954,1763065842195,-500.0,0.00079452,120]
[393879955,1763065842204,-500.0,0.00079452,120]
[393879956,1763065842214,-500.0,0.00079452,120]
[393879957,1763065842224,-299.99,0.00079452,120]
[393879958,1763065842233,-332.00268043,0.00079452,120]
[393879959,1763065842242,-500.0,0.00079452,120]
[393879960,1763065842252,-374.95517256,0.00079452,120]
[393879961,1763065842261,-389.39058057,0.00079452,120]
[393879962,1763065842270,-413.0,0.00079488,120]
[393879963,1763065842279,-208.0,0.0007966,120]
[393879964,1763065842290,-66547.44046334,0.000799,120]
[393879965,1763065842300,-5000.0,0.0008,120]
[393879966,1763065842309,-350.45181643,0.0008,20]
[393879967,1763065842318,-413.0,0.00082488,120]
[393879968,1763065842328,-4000.0,0.000825,120]
[393879969,1763065842337,-1059.53,0.000825,30]
[393879970,1763065842347,-2261.49855789,0.00082677,28]
[393879971,1763065842357,-500.0,0.000828,120]
[393879972,1763065842366,-4000.0,0.000835,120]
[393879973,1763065842378,-20000.875208,0.000838,60]
[393879974,1763065842388,-40000.0,0.0008389,120]
[393879975,1763065842397,-500.0,0.00083896,120]
[393879976,1763065842406,-250.0,0.00083999,40]
[393879977,1763065842415,-250.0,0.00083999,120]
[393879978,1763065842424,-1000.0,0.00084,120]
[393879979,1763065842433,-594.91624155,0.00084,30]
[393879980,1763065842443,-250.0,0.00084099,30]
[393879981,1763065842452,-208.81128821,0.00084144,120]
[393879982,1763065842462,-208.81,0.00084144,120]
[393879983,1763065842471,-162.40877972,0.00084144,120]
[393879984,1763065842480,-162.40877972,0.00084144,120]
[393879985,1763065842490,-162.40877972,0.00084144,120]
[393879986,1763065842499,-162.40877972,0.00084144,120]
[393879987,1763065842508,-162.40877972,0.00084144,120]
[393879988,1763065842517,-184.77777798,0.00084144,120]
[393879989,1763065842527,-184.77777798,0.00084144,120]
[393879990,1763065842536,-184.77,0.00084144,120]
[393879991,1763065842545,-161.68055573,0.00084144,120]
[393879992,1763065842555,-161.68055573,0.00084144,120]
[393879993,1763065842564,-161.68055573,0.00084144,120]
[393879994,1763065842574,-161.68055573,0.00084144,120]
[393879995,1763065842583,-161.68055573,0.00084144,120]
[393879996,1763065842592,-161.68055573,0.00084144,120]
[393879997,1763065842602,-161.68055573,0.00084144,120]
[393879998,1763065842611,-500.0,0.00084189,120]
[393879999,1763065842620,-250.0,0.00084299,30]
[393880000,1763065842634,-200.0,0.000843,120]
[393880001,1763065842643,-2503.19,0.000843,30]
[393880002,1763065842651,-250.0,0.00084318,120]
[393880003,1763065842660,-162.4,0.00084344,120]
[393880004,1763065842670,-161.68,0.00084344,120]
[393880005,1763065842680,-40000.0,0.0008438,120]
[393880006,1763065842689,-40000.0,0.00084388,120]
[393880007,1763065842699,-26337.90041362,0.00084389,120]
[393880008,1763065842709,-40000.0,0.0008439,120]
[393880009,1763065842720,-40000.0,0.00084398,120]
[393880010,1763065842729,-47331.04979419,0.00084398,120]
[393880011,1763065842739,-250.0,0.00084399,30]
[393880012,1763065842748,-1157.0,0.000844,120]
[393880013,1763065842758,-1799.913924,0.000844,120]
[393880014,1763065842767,-5200.0,0.000844,120]
[393880015,1763065842777,-196.259154,0.000844,2]
[393880016,1763065842787,-1000.0,0.00084441,120]
[393880017,1763065842796,-250.0,0.00084441,120]
[393880018,1763065842806,-1000.0,0.00084443,120]
[393880019,1763065842815,-250.0,0.00084443,30]
[393880020,1763065842824,-151.0,0.00084443,30]
[393880021,1763065842834,-151.0,0.00084443,30]
[393880022,1763065842843,-160.60387576,0.00084443,30]
[393880023,1763065842852,-250.0,0.00084443,120]
[393880024,1763065842862,-250.0,0.00084443,30]
[393880025,1763065842872,-250.0,0.00084443,30]
[393880026,1763065842887,-151.0,0.00084443,30]
[393880027,1763065842897,-250.0,0.00084443,30]
[393880028,1763065842906,-151.0,0.00084443,30]
[393880029,1763065842916,-225.6053421,0.00084443,120]
[393880030,1763065842925,-2041.93020868,0.00084443,30]
[393880031,1763065842934,-414.0,0.00084443,30]
[393880032,1763065842944,-151.0,0.00084443,30]
[393880033,1763065842953,-151.0,0.00084443,30]
[393880035,1763065842962,-151.0,0.00084443,30]
[393880036,1763065842972,-151.0,0.00084443,30]
[393880037,1763065842981,-183154.18752564,0.00084443,120]
[393880038,1763065843047,-798.59,0.0003992,10]
[393880039,1763065843061,-12964.77579593,0.00084443,120]
[393880040,1763065843171,-0.06983625,0.00084443,120]
[393880041,1763065843328,-91.63478702,0.00084443,120]
[393880042,1763065843339,-4079.26838825,0.00084443,120]
[393880043,1763065843351,-460.76442841,0.00084443,120]
[393880056,1763065845924,-1.26042244,0.00084443,120]
[393880067,1763065846359,-295.50678004,0.00084443,120]
[393880074,1763065847617,-246.25199325,0.00084443,120]
[393880075,1763065847631,-1038.62063798,0.00084443,120]
[393880082,1763065890023,160.282669,0.00013699,2]
[393880083,1763065890260,160.282669,0.00020548,2]
[393880084,1763065890499,160.282669,0.00027397,2]
[393880119,1763065975239,-160.282669,0.00034247,2]
[393880120,1763065975269,-171.52565003,0.00036831,2]
[393880121,1763065975296,-227.81140996,0.00037666,2]
[393880122,1763065975323,-3971.31225123,0.00039558,4]
[393880124,1763065975438,-46.77941097,0.00039558,4]
[393880137,1763065984243,-429.60816672,0.000376,5]
[393880138,1763065984271,-891.36662859,0.00039558,4]
[393880139,1763065984299,-160.282669,0.00041096,2]
[393880204,1763066097641,-150.0,0.00033543,2]
[393880205,1763066097667,-467.74678408,0.00036492,2]
[393880206,1763066097694,-150.0,0.00036592,2]
[393880207,1763066097725,-150.31,0.00036889,60]
[393880208,1763066097751,-196.11910904,0.00036889,2]
[393880209,1763066097781,-150.31,0.00036989,60]
[393880210,1763066097809,-150.31,0.00037089,60]
[393880211,1763066097836,-150.31,0.00037189,60]
[393880212,1763066097863,-150.31,0.00037289,60]
[393880213,1763066097890,-150.31,0.00037389,60]
[393880214,1763066097918,-150.31,0.00037489,60]
[393880215,1763066097948,-150.31,0.00037589,60]
[393880216,1763066097975,-150.31,0.00037689,60]
[393880217,1763066098003,-150.31,0.00037789,60]
[393880218,1763066098031,-150.31,0.00037889,60]
[393880219,1763066098058,-150.31,0.00037989,60]
[393880220,1763066098086,-150.31,0.00038089,60]
[393880221,1763066098118,-150.31,0.00038189,60]
[393880222,1763066098155,-150.31,0.00038289,60]
[393880223,1763066098184,-150.31,0.00038389,120]
[393880224,1763066098213,-150.31,0.00038489,120]
[393880225,1763066098240,-150.31,0.00038589,120]
[393880226,1763066098269,-150.31,0.00038689,120]
[393880227,1763066098300,-150.31,0.00038789,120]
[393880228,1763066098329,-150.31,0.00038889,120]
[393880229,1763066098358,-150.31,0.00038989,120]
[393880230,1763066098387,-150.31,0.00039089,120]
[393880232,1763066098416,-150.31,0.00039189,120]
[393880233,1763066098445,-150.31,0.00039289,120]
[393880234,1763066098474,-150.40337593,0.00039389,120]
[393880235,1763066098930,-255.9714619,0.00039628,20]
[393880237,1763066103612,-1592.40723261,0.00039628,20]
[393880238,1763066103645,-150.0,0.00039642,2]
[393880331,1763066214230,200.699,0.0003288,120]
[393880332,1763066214808,-169.08276122,0.000329,120]
[393880336,1763066249271,-150.0,0.00033549,2]
[393880337,1763066249297,-169.08276122,0.000339,120]
[393880338,1763066249324,-169.08276122,0.000349,120]
[393880339,1763066249354,-169.08276122,0.000359,120]
[393880340,1763066249386,-150.0,0.00036599,2]
[393880341,1763066249414,-400.0,0.00039627,5]
[393880342,1763066249445,-150.0,0.00039649,2]
[393880343,1763066249472,-928.36294965,0.00040102,2]
[393880344,1763066249607,-5428.78753338,0.00040108,30]
[393880345,1763066258112,-115.37995212,0.00040108,30]
[393880346,1763066273515,-4666.49953899,0.00042271,2]
[393880347,1763066273541,-667.01092202,0.00042271,2]
[393880348,1763066280333,232.85,0.000202,2]
[393880349,1763066291750,230.07223784,0.00025243,2]
[393880350,1763066294153,150.0,0.00031833,2]
[393880482,1763066375692,-150.0,0.00033694,2]
[393880498,1763066391239,153.02454349,0.00030876,2]
[393880508,1763066410125,-150.0,0.00036757,2]
[393880509,1763066410156,-230.07223784,0.00037864,2]
[393880510,1763066410187,-302.74518,0.00038557,2]
[393880511,1763066410216,-300.0,0.00039556,5]
[393880512,1763066410249,-400.0,0.00039556,5]
[393880513,1763066410279,-300.0,0.00039556,5]
[393880514,1763066410310,-1600.0,0.00039556,5]
[393880515,1763066410344,-1649.37516432,0.00039557,20]
[393880516,1763066418934,-135.62483568,0.00039557,20]
[393880517,1763066418965,-150.0,0.0003982,2]
[393880518,1763066418995,-1203.0,0.00042369,5]
[393880522,1763066510148,-150.0,0.00033737,2]
[393880528,1763066547781,-150.0,0.00036804,2]
[393880529,1763066547812,-150.0,0.00039871,2]
[393880530,1763066547840,-2400.4064831,0.000401,2]
[393880531,1763066547868,-966.7505243,0.00041028,2]
[393880532,1763066547949,-2297.22114952,0.00041028,2]
[393880543,1763066553751,-368.47483568,0.00041028,2]
[393880545,1763066606398,167.47666912,0.00037953,2]
[393880561,1763066832124,-621.256316,0.00042741,33]
[393880562,1763066832149,-336.11774439,0.00043107,2]
[393880563,1763066832172,-160.282669,0.00047945,2]
[393880564,1763066832195,-500.0,0.00049999,2]
[393880565,1763066832222,-500.0,0.00049999,2]
[393880566,1763066832245,-1796.59873956,0.00050383,28]
[393880567,1763066832268,-188.668,0.00050385,89]
[393880568,1763066832420,-2191.69,0.00050472,10]
[393880569,1763066832441,-1826.41,0.00050472,10]
[393880570,1763066832467,-500.0,0.00050473,10]
[393880571,1763066832487,-500.0,0.00050473,10]
[393880572,1763066832506,-500.0,0.00050473,10]
[393880573,1763066832527,-170.49059877,0.00050473,10]
[393880574,1763066832547,-500.0,0.00050473,10]
[393880575,1763066832567,-500.0,0.00050473,10]
[393880576,1763066832586,-500.0,0.00050473,10]
[393880577,1763066832606,-500.0,0.00050473,10]
[393880578,1763066832626,-500.0,0.00050473,10]
[393880579,1763066832646,-500.0,0.00050473,10]
[393880580,1763066832665,-500.0,0.00050473,10]
[393880581,1763066832686,-500.0,0.00050473,3]
[393880582,1763066832708,-500.0,0.00050473,10]
[393880583,1763066832728,-500.0,0.00050473,10]
[393880584,1763066832749,-503.45367496,0.00050473,10]
[393880585,1763066832770,-500.51404501,0.00050473,10]
[393880586,1763066832790,-500.0,0.00050473,10]
[393880587,1763066832811,-505.76688572,0.00050473,10]
[393880588,1763066832831,-4030.2450957,0.00050474,4]
[393880589,1763066832851,-6861.34526109,0.00050474,4]
[393880590,1763066832872,-2630.03,0.00050474,10]
[393880591,1763066832892,-500.0,0.00050482,7]
[393880592,1763066832912,-422.42840741,0.00050482,7]
[393880593,1763066832931,-500.0,0.00050482,120]
[393880594,1763066832954,-397.14951968,0.00050482,120]
[393880595,1763066832974,-500.0,0.00050482,120]
[393880596,1763066832995,-500.0,0.00050482,31]
[393880597,1763066833017,-500.0,0.00050482,120]
[393880598,1763066833040,-500.0,0.00050482,120]
[393880599,1763066833062,-500.0,0.00050482,120]
[393880600,1763066833089,-500.0,0.00050482,7]
[393880601,1763066833110,-294.73671476,0.00050482,31]
[393880602,1763066833131,-500.0,0.00050482,120]
[393880603,1763066833154,-500.0,0.00050482,120]
[393880604,1763066833179,-500.0,0.00050482,7]
[393880605,1763066833201,-506.36584988,0.00050482,120]
[393880606,1763066833221,-500.0,0.00050482,120]
[393880607,1763066833243,-500.0,0.00050482,120]
[393880608,1763066833265,-500.0,0.00050482,120]
[393880609,1763066833285,-500.0,0.00050482,31]
[393880610,1763066833306,-500.0,0.00050482,120]
[393880611,1763066833330,-500.0,0.00050482,7]
[393880612,1763066833351,-500.0,0.00050482,120]
[393880613,1763066833375,-500.0,0.00050482,120]
[393880614,1763066833395,-500.0,0.00050482,31]
[393880615,1763066833416,-282.21479276,0.00050482,120]
[393880616,1763066833439,-500.0,0.00050482,120]
[393880617,1763066833470,-394.15626906,0.00050482,120]
[393880618,1763066833497,-500.0,0.00050482,7]
[393880619,1763066833523,-500.0,0.00050482,120]
[393880620,1763066833548,-500.0,0.00050482,120]
[393880621,1763066833570,-500.0,0.00050482,120]
[393880622,1763066833595,-500.0,0.00050482,7]
[393880623,1763066833617,-202.09882337,0.00050482,120]
[393880624,1763066833637,-500.0,0.00050482,31]
[393880625,1763066833659,-500.0,0.00050482,120]
[393880626,1763066833684,-500.0,0.00050482,7]
[393880627,1763066833712,-500.0,0.00050482,31]
[393880628,1763066833734,-500.0,0.00050482,120]
[393880629,1763066833760,-500.0,0.00050482,7]
[393880630,1763066833781,-500.0,0.00050482,120]
[393880631,1763066833802,-500.0,0.00050482,120]
[393880632,1763066833826,-500.0,0.00050482,7]
[393880633,1763066833847,-500.0,0.00050482,120]
[393880634,1763066833867,-500.0,0.00050482,31]
[393880635,1763066833889,-500.0,0.00050482,120]
[393880636,1763066833913,-500.0,0.00050482,7]
[393880637,1763066833935,-500.0,0.00050482,120]
[393880638,1763066833963,-500.0,0.00050482,7]
[393880639,1763066833984,-500.0,0.00050482,120]
[393880640,1763066834005,-500.0,0.00050482,120]
[393880641,1763066834029,-500.0,0.00050482,7]
[393880642,1763066834050,-500.0,0.00050482,120]
[393880643,1763066834072,-500.0,0.00050482,120]
[393880644,1763066834097,-500.0,0.00050482,7]
[393880645,1763066834119,-500.0,0.00050482,120]
[393880646,1763066834140,-500.0,0.00050482,120]
[393880647,1763066834160,-500.0,0.00050482,120]
[393880648,1763066834185,-500.0,0.00050482,7]
[393880649,1763066834208,-500.0,0.00050482,120]
[393880650,1763066834229,-500.0,0.00050482,120]
[393880651,1763066834255,-500.0,0.00050482,7]
[393880652,1763066834276,-500.0,0.00050482,120]
[393880653,1763066834300,-500.0,0.00050482,7]
[393880654,1763066834322,-500.0,0.00050482,120]
[393880655,1763066834346,-500.0,0.00050482,7]
[393880656,1763066834371,-500.0,0.00050482,120]
[393880657,1763066834393,-500.0,0.00050482,120]
[393880658,1763066834417,-500.0,0.00050482,7]
[393880659,1763066834439,-170.99219331,0.00050482,120]
[393880660,1763066834467,-500.0,0.00050482,7]
[393880661,1763066834489,-500.0,0.00050482,120]
[393880662,1763066834518,-500.0,0.00050482,7]
[393880663,1763066834543,-500.0,0.00050482,7]
[393880664,1763066834565,-500.0,0.00050482,120]
[393880665,1763066834592,-500.0,0.00050482,7]
[393880666,1763066834616,-500.0,0.00050482,120]
[393880667,1763066834641,-500.0,0.00050482,7]
[393880668,1763066834664,-500.0,0.00050482,120]
[393880669,1763066834688,-500.0,0.00050482,7]
[393880670,1763066834715,-500.0,0.00050482,7]
[393880671,1763066834736,-500.0,0.00050482,120]
[393880672,1763066834760,-500.0,0.00050482,7]
[393880673,1763066834781,-500.0,0.00050482,120]
[393880674,1763066834803,-500.0,0.00050482,120]
[393880675,1763066834827,-500.0,0.00050482,7]
[393880676,1763066834848,-500.0,0.00050482,120]
[393880677,1763066834872,-500.0,0.00050482,7]
[393880678,1763066834894,-500.0,0.00050482,120]
[393880679,1763066834920,-500.0,0.00050482,7]
[393880680,1763066834945,-500.0,0.00050482,7]
[393880681,1763066834971,-500.0,0.00050482,7]
[393880682,1763066834995,-500.0,0.00050482,7]
[393880683,1763066835020,-500.0,0.00050482,7]
[393880684,1763066835045,-500.0,0.00050482,7]
[393880685,1763066835069,-500.0,0.00050482,7]
[393880686,1763066835095,-500.0,0.00050482,7]
[393880687,1763066835121,-500.0,0.00050482,7]
[393880688,1763066835147,-500.0,0.00050482,7]
[393880689,1763066835171,-500.0,0.00050482,7]
[393880690,1763066835196,-500.0,0.00050482,7]
[393880691,1763066835223,-500.0,0.00050482,7]
[393880692,1763066835248,-500.0,0.00050482,7]
[393880693,1763066835272,-500.0,0.00050482,7]
[393880694,1763066835296,-500.0,0.00050482,7]
[393880695,1763066835320,-500.0,0.00050482,7]
[393880696,1763066835344,-500.0,0.00050482,7]
[393880697,1763066835367,-500.0,0.00050482,7]
[393880698,1763066835391,-500.0,0.00050482,7]
[393880699,1763066835414,-500.0,0.00050482,7]
[393880700,1763066835439,-500.0,0.00050482,7]
[393880701,1763066835465,-500.0,0.00050482,120]
[393880702,1763066835486,-500.0,0.00050482,120]
[393880703,1763066835508,-500.0,0.00050482,120]
[393880704,1763066835531,-500.0,0.00050482,120]
[393880705,1763066835552,-500.0,0.00050482,120]
[393880706,1763066835575,-500.0,0.00050482,120]
[393880707,1763066835684,-500.0,0.00050482,120]
[393880708,1763066835708,-500.0,0.00050482,120]
[393880709,1763066835731,-500.0,0.00050482,120]
[393880710,1763066835752,-500.0,0.00050482,120]
[393880711,1763066835773,-500.0,0.00050482,120]
[393880712,1763066835796,-500.0,0.00050482,120]
[393880713,1763066835818,-500.0,0.00050482,120]
[393880714,1763066835840,-500.0,0.00050482,120]
[393880715,1763066835862,-500.0,0.00050482,120]
[393880716,1763066835884,-527.54815599,0.00050482,120]
[393880717,1763066835905,-500.0,0.00050482,120]
[393880718,1763066835928,-500.0,0.00050482,120]
[393880719,1763066835950,-500.0,0.00050482,120]
[393880720,1763066835975,-500.0,0.00050482,120]
[393880721,1763066835998,-500.0,0.00050482,120]
[393880722,1763066836019,-500.0,0.00050482,120]
[393880723,1763066836040,-500.0,0.00050482,120]
[393880724,1763066836061,-500.0,0.00050482,120]
[393880725,1763066836083,-500.0,0.00050482,120]
[393880726,1763066836104,-500.0,0.00050482,120]
[393880727,1763066836126,-500.0,0.00050482,120]
[393880728,1763066836147,-500.0,0.00050482,120]
[393880729,1763066836167,-500.0,0.00050482,120]
[393880730,1763066836191,-2893.73355448,0.00050482,7]
[393880731,1763066836215,-2893.73355448,0.00050482,7]
[393880732,1763066836237,-500.0,0.00050482,120]
[393880733,1763066836262,-2893.73355448,0.00050482,7]
[393880734,1763066836283,-500.0,0.00050482,120]
[393880735,1763066836307,-2893.73355448,0.00050482,7]
[393880736,1763066836331,-2893.73355448,0.00050482,7]
[393880737,1763066836355,-2893.73355448,0.00050482,7]
[393880738,1763066836380,-2893.73355448,0.00050482,7]
[393880739,1763066836403,-2893.73355448,0.00050482,7]
[393880740,1763066836428,-2893.73355448,0.00050482,7]
[393880741,1763066836457,-2893.73355448,0.00050482,7]
[393880742,1763066836483,-2893.73355448,0.00050482,7]
[393880743,1763066836509,-2893.73355448,0.00050482,7]
[393880744,1763066836535,-2893.73355448,0.00050482,7]
[393880745,1763066836560,-2893.73355448,0.00050482,7]
[393880746,1763066836585,-2893.73355448,0.00050482,7]
[393880747,1763066836610,-2893.73355448,0.00050482,7]
[393880748,1763066836635,-2893.73355448,0.00050482,7]
[393880749,1763066836661,-2893.73355448,0.00050482,7]
[393880750,1763066836686,-2893.73355448,0.00050482,7]
[393880751,1763066836713,-2893.73355448,0.00050482,7]
[393880752,1763066836738,-2893.73355448,0.00050482,7]
[393880753,1763066836764,-2893.73355448,0.00050482,7]
[393880754,1763066836791,-2893.73355448,0.00050482,7]
[393880755,1763066836817,-2893.73355448,0.00050482,7]
[393880756,1763066836841,-2893.73355448,0.00050482,7]
[393880757,1763066836865,-2893.73355448,0.00050482,7]
[393880758,1763066836890,-2893.73355448,0.00050482,7]
[393880759,1763066836915,-2893.73355448,0.00050482,7]
[393880760,1763066836939,-2893.73355448,0.00050482,7]
[393880761,1763066836965,-2893.73355448,0.00050482,7]
[393880762,1763066836990,-2893.73355448,0.00050482,7]
[393880763,1763066837016,-2893.73355448,0.00050482,7]
[393880764,1763066837038,-500.0,0.00050482,120]
[393880765,1763066837059,-500.0,0.00050482,120]
[393880766,1763066837080,-318.88941037,0.00050482,120]
[393880767,1763066837103,-2893.73355449,0.00050482,7]
[393880768,1763066837127,-2893.73355449,0.00050482,7]
[393880769,1763066837152,-2893.73355449,0.00050482,7]
[393880770,1763066837176,-2893.73355449,0.00050482,7]
[393880771,1763066837199,-2893.73355449,0.00050482,7]
[393880772,1763066837226,-2893.73355449,0.00050482,7]
[393880773,1763066837249,-2893.73355449,0.00050482,7]
[393880774,1763066837274,-2893.73355449,0.00050482,7]
[393880775,1763066837299,-2893.73355449,0.00050482,7]
[393880776,1763066837318,-500.0,0.00050484,120]
[393880777,1763066837340,-230.30231008,0.00050485,2]
[393880778,1763066837360,-1184.79,0.000505,14]
[393880779,1763066837383,-212.35290427,0.000505,120]
[393880780,1763066837404,-500.0,0.00050758,120]
[393880781,1763066837425,-1000.0,0.00051021,10]
[393880782,1763066837444,-729.31571795,0.00051021,10]
[393880783,1763066837468,-1000.0,0.00051021,10]
[393880784,1763066837488,-669.92936332,0.00051021,10]
[393880785,1763066837508,-1000.0,0.00051021,10]
[393880786,1763066837529,-1000.0,0.00051021,10]
[393880787,1763066837550,-1000.0,0.00051021,10]
[393880788,1763066837571,-1000.0,0.00051021,10]
[393880789,1763066837591,-1000.0,0.00051021,3]
[393880790,1763066837611,-500.0,0.00051057,10]
[393880791,1763066837630,-1775.49945114,0.00052306,14]
[393880792,1763066837649,-304.03237781,0.000534,10]
[393880793,1763066837668,-160.282669,0.00054795,2]
[393880794,1763066837689,-159.94,0.000548,14]
[393880795,1763066837710,-270.0,0.00057783,2]
[393880796,1763066837729,-153.17756803,0.00058058,2]
[393880797,1763066837749,-160.282669,0.00061644,2]
[393880798,1763066837769,-1796.59873952,0.00063885,28]
[393880799,1763066837788,-212.35,0.00068393,120]
[393880800,1763066837807,-170.68,0.00068393,2]
[393880801,1763066837827,-160.28,0.00068393,2]
[393880802,1763066837847,-160.282669,0.00068493,2]
[393880803,1763066837867,-413.0,0.00071428,120]
[393880804,1763066837889,-168.0,0.00073563,2]
[393880805,1763066837910,-500.0,0.00073851,2]
[393880806,1763066837930,-326.45308509,0.00073851,2]
[393880807,1763066837951,-168.0,0.00073853,2]
[393880808,1763066837975,-501.73645282,0.000739,15]
[393880809,1763066837994,-500.0,0.000739,15]
[393880810,1763066838014,-436.91889846,0.000739,15]
[393880811,1763066838034,-150.35031034,0.000739,7]
[393880812,1763066838053,-500.0,0.000739,10]
[393880813,1763066838074,-500.0,0.000739,15]
[393880814,1763066838094,-413.0,0.00074428,120]
[393880815,1763066838114,-1130.46379356,0.00074448,15]
[393880816,1763066838135,-1000.0,0.00074448,15]
[393880817,1763066838156,-500.0,0.00074996,15]
[393880818,1763066838177,-160.282669,0.00075342,120]
[393880819,1763066838197,-1184.79,0.000754,14]
[393880820,1763066838224,-168.0,0.00075476,2]
[393880821,1763066838246,-168.0,0.00075618,2]
[393880822,1763066838266,-1796.59873952,0.00077388,28]
[393880823,1763066838285,-413.0,0.00077428,120]
[393880824,1763066838304,-380.24210283,0.00079452,120]
[393880825,1763066838323,-364.73543644,0.00079452,120]
[393880826,1763066838342,-500.0,0.00079452,120]
[393880827,1763066838361,-266.14931417,0.00079452,120]
[393880828,1763066838385,-1536.0,0.0008,120]
[393880829,1763066838405,-413.0,0.00080428,120]
[393880830,1763066838425,-160.282669,0.00082192,120]
[393880831,1763066838447,-500.0,0.000828,120]
[393880832,1763066838471,-413.0,0.00083428,120]
[393880833,1763066838492,-1762.9960518,0.00083741,11]
[393880834,1763066838512,-500.0,0.00083896,120]
[393880835,1763066838533,-352.05941813,0.00083989,110]
[393880836,1763066838554,-412.98,0.00084233,120]
[393880837,1763066838575,-83093.22355899,0.00084243,120]
[393880838,1763066849139,-196.11910904,0.00050382,2]
[393880839,1763066849159,-158.33784733,0.00050473,10]
[393880840,1763066849177,-577.71772446,0.00050473,10]
[393880841,1763066849196,-231.03472063,0.00050473,10]
[393880842,1763066849216,-563.55050698,0.00050473,10]
[393880843,1763066849235,-500.0,0.00050473,10]
[393880844,1763066849254,-5794.77644101,0.00084243,120]
[393880845,1763066849274,-2365.93686798,0.00084333,9]
[393880846,1763066853120,-173.59913959,0.00084333,10]
[393880850,1763066954092,-9243.481755,0.00054166,120]
[393880851,1763066954110,-6438.7147701,0.00060197,28]
[393880966,1763067032080,-99.50644268,0.00039559,14]
[393881283,1763067043805,-9162.76625974,0.00039559,14]
[393881284,1763067043815,-367.74024232,0.00079452,120]
[393881285,1763067043825,-302.84316289,0.00079452,120]
[393881286,1763067043835,-1536.0,0.0008,120]
[393881287,1763067043844,-500.0,0.000828,120]
[393881288,1763067043854,-500.0,0.00083896,120]